bitfinex-derivatives/quotes_BTCF0:USTF0_20250827
["timestamp","ask_amount","ask_price","bid_price","bid_amount"]
[1756299467572,0.08187,111390.0,111380.0,1.81648162]
[1756299468978,0.04874,111390.0,111380.0,1.81648162]
[1756299469876,0.04874,111390.0,111380.0,0.97120162]
[1756299470179,0.04874,111390.0,111380.0,1.81556162]
[1756299470377,0.08187,111390.0,111380.0,1.465714]
[1756299470577,0.08187,111390.0,111380.0,1.81556162]
[1756299471376,0.14475,111390.0,111380.0,0.97120162]
[1756299471578,0.08187,111390.0,111380.0,1.81556162]
[1756299471783,0.02265,111390.0,111380.0,1.81556162]
[1756299472080,0.02265,111390.0,111380.0,1.9766961]
[1756299472475,0.001,111390.0,111380.0,1.9766961]
[1756299472882,0.001,111390.0,111380.0,1.81556162]
[1756299473178,0.001,111390.0,111380.0,1.97681683]
[1756299474180,0.16161812,111400.0,111390.0,0.2605459]
[1756299474375,0.12948812,111400.0,111390.0,0.97119352]
[1756299474680,0.01886812,111400.0,111390.0,0.97119352]
[1756299474977,0.01886812,111400.0,111390.0,0.98561469]
[1756299476477,0.01786812,111400.0,111390.0,0.98561469]
[1756299477382,0.01786812,111400.0,111390.0,0.63576707]
[1756299477578,0.06560812,111400.0,111390.0,1.82949469]
[1756299477779,0.01786812,111400.0,111390.0,1.82949469]
[1756299478282,0.05099812,111400.0,111390.0,1.82949469]
[1756299478679,0.01786812,111400.0,111390.0,1.90165907]
[1756299482778,0.001,111410.0,111400.0,0.2563477]
[1756299482976,0.001,111410.0,111400.0,0.96699532]
[1756299485088,0.001,111410.0,111400.0,1.80955532]
[1756299485380,0.14633,111410.0,111400.0,1.4594277]
[1756299485580,0.14633,111410.0,111400.0,1.80927532]
[1756299485884,0.14533,111410.0,111400.0,1.80927532]
[1756299486084,0.14533,111410.0,111400.0,1.97053053]
[1756299486884,0.14533,111410.0,111400.0,1.80927532]
[1756299487584,0.0845,111410.0,111400.0,1.80927532]
[1756299487785,0.0845,111410.0,111400.0,0.96699532]
[1756299488086,0.0845,111410.0,111400.0,1.80851532]
[1756299488582,0.12592,111410.0,111400.0,1.80851532]
[1756299489485,0.12592,111410.0,111400.0,0.96699532]
[1756299489687,1.58472261,111420.0,111410.0,0.1563697]
[1756299489886,1.68823261,111420.0,111410.0,0.96698732]
[1756299490184,1.68823261,111420.0,111410.0,1.4582197]
[1756299492895,1.68823261,111420.0,111410.0,0.6171397]
[1756299493199,1.77797431,111420.0,111410.0,1.80998732]
[1756299493598,1.77797431,111420.0,111410.0,1.4601397]
[1756299495399,1.77697431,111420.0,111410.0,1.4601397]
[1756299495804,1.77797431,111420.0,111410.0,1.4601397]
[1756299497101,1.77797431,111420.0,111410.0,1.48051833]
[1756299498002,1.77797431,111420.0,111410.0,1.47959833]
[1756299498301,1.77797431,111420.0,111410.0,1.82944595]
[1756299498503,1.77797431,111420.0,111410.0,0.98736595]
[1756299498701,1.77797431,111420.0,111410.0,1.82944595]
[1756299499203,1.68823261,111420.0,111410.0,1.82944595]
[1756299499402,1.77797431,111420.0,111410.0,1.82944595]
[1756299499901,1.77797431,111420.0,111410.0,1.82892595]
[1756299500293,1.77797431,111420.0,111410.0,1.47907833]
[1756299500496,1.77797431,111420.0,111410.0,0.98736595]
[1756299500696,1.77797431,111420.0,111410.0,1.47899833]
[1756299501800,1.77797431,111420.0,111410.0,0.63751833]
[1756299502000,1.77797431,111420.0,111410.0,1.82848595]
[1756299502304,2.68782193,111420.0,111410.0,0.45476863]
[1756299502601,2.02797431,111420.0,111410.0,0.38117863]
[1756299502800,2.71782193,111420.0,111410.0,0.38117863]
[1756299503004,2.73782193,111420.0,111410.0,0.38117863]
[1756299503200,0.0897497,111410.0,111400.0,0.38892]
[1756299503397,1.45384732,111410.0,111400.0,0.3608]
[1756299503701,0.2630078,111400.0,111390.0,0.57046386]
[1756299503909,0.61285542,111400.0,111390.0,1.25004865]
[1756299504195,0.2630078,111400.0,111390.0,1.43971455]
[1756299504407,0.61285542,111400.0,111390.0,1.4588359]
[1756299505397,1.11275542,111400.0,111390.0,1.4588359]
[1756299505898,1.11275542,111400.0,111390.0,1.3658359]
[1756299506098,1.11275542,111400.0,111390.0,1.3467259]
[1756299506603,1.11275542,111400.0,111390.0,0.5050459]
[1756299507003,1.11275542,111400.0,111390.0,1.3469659]
[1756299507303,1.68275542,111400.0,111390.0,0.38716]
[1756299507507,1.68275542,111400.0,111390.0,0.3608]
[1756299507709,1.36275542,111400.0,111390.0,0.505046]
[1756299508008,1.36275542,111400.0,111390.0,0.41528]
[1756299508503,1.36275542,111400.0,111390.0,0.617156]
[1756299508802,1.0129078,111400.0,111390.0,0.617156]
[1756299509005,1.36275542,111400.0,111390.0,1.458636]
[1756299509808,0.7629078,111400.0,111390.0,1.458636]
[1756299510201,0.7629078,111400.0,111390.0,0.617156]
[1756299510402,0.7629078,111400.0,111390.0,1.458476]
[1756299510709,1.11275542,111400.0,111390.0,1.36871]
[1756299511102,1.11275542,111400.0,111390.0,1.36855]
[1756299511705,1.11129542,111400.0,111390.0,1.36855]
[1756299514315,1.11129542,111400.0,111390.0,0.52739]
[1756299514710,1.11129542,111400.0,111390.0,1.33543]
[1756299514913,1.11129542,111400.0,111390.0,1.36993]
[1756299516521,1.11129542,111400.0,111390.0,1.459696]
[1756299518914,0.7614478,111400.0,111390.0,1.459696]
[1756299519312,1.11129542,111400.0,111390.0,1.459696]
[1756299519925,1.08337542,111400.0,111390.0,1.459696]
[1756299520224,0.6921078,111400.0,111390.0,1.80954362]
[1756299520415,0.4999,111400.0,111390.0,1.80954362]
[1756299521018,0.4999,111400.0,111390.0,2.05954362]
[1756299523316,0.01807079,111410.0,111400.0,0.2612779]
[1756299523524,0.01807079,111410.0,111400.0,0.97192552]
[1756299523917,0.51797079,111410.0,111400.0,0.97192552]
[1756299524119,0.51797079,111410.0,111400.0,1.22192552]
[1756299524717,0.51897079,111410.0,111400.0,1.22192552]
[1756299524920,0.01907079,111410.0,111400.0,1.22192552]
[1756299525426,0.51897079,111410.0,111400.0,1.22192552]
[1756299525624,0.51997079,111410.0,111400.0,1.22192552]
[1756299526026,0.32861241,111410.0,111400.0,1.22192552]
[1756299526234,0.32861241,111410.0,111400.0,0.8720779]
[1756299526418,0.32861241,111410.0,111400.0,1.22192552]
[1756299526615,0.46796241,111410.0,111400.0,0.8720779]
[1756299526819,0.93709973,111410.0,111400.0,1.37212]
[1756299527224,0.93709973,111410.0,111400.0,1.4618777]
[1756299527621,0.84735003,111410.0,111400.0,1.4618777]
[1756299527822,0.93709973,111410.0,111400.0,0.6220777]
[1756299528220,0.93709973,111410.0,111400.0,1.4617977]
[1756299528419,0.84735003,111410.0,111400.0,1.4617977]
[1756299528821,0.93709973,111410.0,111400.0,1.4617977]
[1756299529326,0.58725211,111410.0,111400.0,0.6220777]
[1756299529525,0.49750241,111410.0,111400.0,1.4617977]
[1756299529727,0.93709973,111410.0,111400.0,1.4617977]
[1756299529923,0.58725211,111410.0,111400.0,1.4617977]
[1756299530426,0.49750241,111410.0,111400.0,1.4617977]
[1756299531026,0.46796241,111410.0,111400.0,1.4617977]
[1756299532030,0.58725211,111410.0,111400.0,1.4617977]
[1756299532231,0.55771211,111410.0,111400.0,1.4617977]
[1756299533431,0.58725211,111410.0,111400.0,1.4617977]
[1756299533740,0.58725211,111410.0,111400.0,1.4636777]
[1756299533741,0.93709973,111410.0,111400.0,1.4636777]
[1756299534125,0.58725211,111410.0,111400.0,1.4636777]
[1756299534328,0.93709973,111410.0,111400.0,1.4636777]
[1756299534630,0.81781003,111410.0,111400.0,1.4636777]
[1756299534833,0.46796241,111410.0,111400.0,1.81352532]
[1756299535032,0.42892241,111410.0,111400.0,1.81352532]
[1756299535330,0.32861241,111410.0,111400.0,1.81352532]
[1756299537430,0.32861241,111410.0,111400.0,1.4636777]
[1756299537634,0.32861241,111410.0,111400.0,1.81352532]
[1756299539037,0.36055241,111410.0,111400.0,1.81552532]
[1756299539233,0.32761241,111410.0,111400.0,1.81552532]
[1756299539429,0.32761241,111410.0,111400.0,1.81352532]
[1756299539626,0.32761241,111410.0,111400.0,1.81452532]
[1756299541339,0.36055241,111410.0,111400.0,1.81452532]
[1756299541738,0.32761241,111410.0,111400.0,1.81652532]
[1756299542739,0.32761241,111410.0,111400.0,1.81552532]
[1756299543234,0.36055241,111410.0,111400.0,1.81552532]
[1756299543537,0.56112201,111410.0,111400.0,1.81424532]
[1756299544035,0.58829201,111410.0,111400.0,0.6240777]
[1756299544238,0.56112201,111410.0,111400.0,0.97392532]
[1756299544427,0.56112201,111410.0,111400.0,1.4642777]
[1756299544832,0.58829201,111410.0,111400.0,1.4641977]
[1756299545033,0.58829201,111410.0,111400.0,1.4631977]
[1756299545235,0.58829201,111410.0,111400.0,1.4631577]
[1756299545932,0.56112201,111410.0,111400.0,1.4631577]
[1756299546337,0.56112201,111410.0,111400.0,1.4641577]
[1756299546634,0.47137241,111410.0,111400.0,1.62541291]
[1756299546840,0.47137241,111410.0,111400.0,1.62441291]
[1756299547536,0.47137241,111410.0,111400.0,1.97426053]
[1756299547842,0.56112201,111410.0,111400.0,1.13518053]
[1756299548041,0.58829201,111410.0,111400.0,1.97490053]
[1756299548241,0.56112201,111410.0,111400.0,1.97490053]
[1756299548443,0.56112201,111410.0,111400.0,1.62505291]
[1756299548642,0.56112201,111410.0,111400.0,1.97390053]
[1756299548942,0.58829201,111410.0,111400.0,1.13418053]
[1756299549143,0.58829201,111410.0,111400.0,1.97390053]
[1756299549743,0.58829201,111410.0,111400.0,1.62405291]
[1756299550046,0.07928241,111410.0,111400.0,2.57474815]
[1756299550640,0.07928241,111410.0,111400.0,2.41349294]
[1756299551439,0.07928241,111410.0,111400.0,2.57474815]
[1756299551944,0.02717,111420.0,111410.0,0.0897497]
[1756299552247,0.10647,111420.0,111410.0,0.82052431]
[1756299553146,0.0793,111420.0,111410.0,0.82052431]
[1756299553443,0.0793,111420.0,111410.0,0.82252431]
[1756299553643,0.0793,111420.0,111410.0,0.83599004]
[1756299554239,0.06942,111440.0,111430.0,0.0897259]
[1756299554440,0.37942,111440.0,111430.0,2.16868352]
[1756299554843,0.4691455,111440.0,111430.0,1.8188359]
[1756299555042,0.4691455,111440.0,111430.0,2.16868352]
[1756299556250,0.5706555,111440.0,111430.0,2.16868352]
[1756299556741,0.5706555,111440.0,111430.0,2.14151352]
[1756299556947,0.5706555,111440.0,111430.0,2.16868352]
[1756299557948,0.5706555,111440.0,111430.0,1.8188359]
[1756299558152,0.5706555,111440.0,111430.0,2.16868352]
[1756299558747,0.5706555,111440.0,111430.0,1.8188359]
[1756299558947,0.5706555,111440.0,111430.0,2.16868352]
[1756299560039,0.5706555,111440.0,111430.0,2.14143352]
[1756299560243,0.5706555,111440.0,111430.0,1.7915859]
[1756299561840,0.3606555,111440.0,111430.0,1.7915859]
[1756299562252,0.3606555,111440.0,111430.0,1.8187559]
[1756299562645,0.96050312,111440.0,111430.0,0.46852]
[1756299562850,0.96050312,111440.0,111430.0,1.0699534]
[1756299563050,0.6106555,111440.0,111430.0,1.0699534]
[1756299563253,0.6106555,111440.0,111430.0,1.4307534]
[1756299564150,0.8106555,111440.0,111430.0,1.4307534]
[1756299564547,0.8106555,111440.0,111430.0,0.5911934]
[1756299564751,0.8106555,111440.0,111430.0,0.50146]
[1756299565053,0.8106555,111440.0,111430.0,0.42859]
[1756299565452,0.8106555,111440.0,111430.0,0.46153]
[1756299565641,0.8106555,111440.0,111430.0,0.5911934]
[1756299565848,1.16050312,111440.0,111430.0,0.5911934]
[1756299566047,0.8106555,111440.0,111430.0,0.5911934]
[1756299566247,1.16050312,111440.0,111430.0,0.5911934]
[1756299566847,1.16050312,111440.0,111430.0,0.50146]
[1756299567249,0.8106555,111440.0,111430.0,0.61107116]
[1756299567654,0.68799,111440.0,111430.0,0.63824116]
[1756299567849,0.72093,111440.0,111430.0,0.98808878]
[1756299568049,0.8106554,111440.0,111430.0,0.98808878]
[1756299568651,0.8106554,111440.0,111430.0,0.87118538]
[1756299568853,0.8106554,111440.0,111430.0,0.89835538]
[1756299569256,0.8106554,111440.0,111430.0,0.98808878]
[1756299569951,0.8106554,111440.0,111430.0,0.61107116]
[1756299570155,0.8106554,111440.0,111430.0,0.96091878]
[1756299570454,0.2604315,111420.0,111410.0,0.16125521]
[1756299570653,0.2604396,111410.0,111400.0,0.50056]
[1756299570861,0.2604396,111410.0,111400.0,0.87757762]
[1756299572053,0.2604396,111410.0,111400.0,0.52773]
[1756299572655,0.7603396,111410.0,111400.0,0.6174876]
[1756299572862,0.7603396,111410.0,111400.0,0.96733522]
[1756299573160,0.7603396,111410.0,111400.0,0.6174876]
[1756299573762,0.7583396,111410.0,111400.0,0.6174876]
[1756299574062,0.7583396,111410.0,111400.0,0.6204876]
[1756299574263,0.7583396,111410.0,111400.0,0.53073]
[1756299574462,0.7583396,111410.0,111400.0,0.53373]
[1756299575257,0.7583396,111410.0,111400.0,0.53173]
[1756299575958,0.7583396,111410.0,111400.0,0.52973]
[1756299577065,0.7593396,111410.0,111400.0,0.52873]
[1756299577967,0.7593396,111410.0,111400.0,0.52773]
[1756299579470,1.10918722,111410.0,111400.0,0.52773]
[1756299580467,0.7593396,111410.0,111400.0,0.52773]
[1756299580970,1.10918722,111410.0,111400.0,0.52773]
[1756299581167,0.7593396,111410.0,111400.0,0.52773]
[1756299582869,1.10918722,111410.0,111400.0,0.52773]
[1756299583772,1.10918722,111410.0,111400.0,0.6174876]
[1756299584171,0.7593396,111410.0,111400.0,0.6174876]
[1756299584370,0.7593396,111410.0,111400.0,0.52773]
[1756299584871,1.10918722,111410.0,111400.0,0.52773]
[1756299585971,1.10918722,111410.0,111400.0,0.6174876]
[1756299586167,1.10918722,111410.0,111400.0,0.5903176]
[1756299586369,1.10918722,111410.0,111400.0,0.6174876]
[1756299586370,0.7251996,111410.0,111400.0,0.6174876]
[1756299586565,0.7593396,111410.0,111400.0,0.96733522]
[1756299586765,0.7593396,111410.0,111400.0,0.6174876]
[1756299588461,0.7593396,111410.0,111400.0,1.4568476]
[1756299589770,0.7593396,111410.0,111400.0,1.36709]
[1756299590267,1.10918722,111410.0,111400.0,0.50056]
[1756299590471,1.10918722,111410.0,111400.0,0.3608]
[1756299591067,1.10918722,111410.0,111400.0,0.38712]
[1756299591469,1.10918722,111410.0,111400.0,0.46843]
[1756299591669,1.10918722,111410.0,111400.0,0.50056]
[1756299593871,1.10918722,111410.0,111400.0,0.45909]
[1756299594066,1.10918722,111410.0,111400.0,0.50056]
[1756299594770,1.10918722,111410.0,111400.0,0.45909]
[1756299595976,1.10918722,111410.0,111400.0,0.50056]
[1756299596472,1.10918722,111410.0,111400.0,0.44071]
[1756299596878,1.10918722,111410.0,111400.0,0.50056]
[1756299598280,1.10918722,111410.0,111400.0,0.5903177]
[1756299598581,1.10918722,111410.0,111400.0,0.6174877]
[1756299600382,1.10918722,111410.0,111400.0,0.50056]
[1756299600584,0.7593396,111410.0,111400.0,0.50056]
[1756299600983,0.7693396,111410.0,111400.0,0.50056]
[1756299601280,1.11918722,111410.0,111400.0,0.5903216]
[1756299601781,0.7693396,111410.0,111400.0,0.5903216]
[1756299603876,0.7693396,111410.0,111400.0,0.6174916]
[1756299604078,0.7691696,111410.0,111400.0,0.96733922]
[1756299604278,0.7691696,111410.0,111400.0,0.50056]
[1756299604477,1.11901722,111410.0,111400.0,0.50056]
[1756299604979,1.11901722,111410.0,111400.0,0.45909]
[1756299605683,1.11901722,111410.0,111400.0,0.50136]
[1756299605884,0.7691696,111410.0,111400.0,0.50136]
[1756299606086,0.7691696,111410.0,111400.0,0.618292]
[1756299607779,0.7691696,111410.0,111400.0,1.457412]
[1756299612588,0.7691696,111410.0,111400.0,0.618292]
[1756299612790,0.7691696,111410.0,111400.0,1.457412]
[1756299614385,1.11901722,111410.0,111400.0,0.50136]
[1756299614587,1.35901722,111410.0,111400.0,0.3608]
[1756299614891,1.763551,111400.0,111390.0,0.16125521]
[1756299615090,0.089769,111390.0,111380.0,1.3648617]
[1756299615284,0.193709,111390.0,111380.0,1.3920317]
[1756299616590,0.263559,111390.0,111380.0,1.4623817]
[1756299616789,0.61340662,111390.0,111380.0,0.47342]
[1756299616978,0.61340662,111390.0,111380.0,0.46409]
[1756299617180,0.62581982,111390.0,111380.0,1.30313]
[1756299617384,0.62581982,111390.0,111380.0,1.30413]
[1756299617584,0.62581982,111390.0,111380.0,0.46509]
[1756299617991,1.12571982,111390.0,111380.0,0.46509]
[1756299618187,1.12571982,111390.0,111380.0,0.46709]
[1756299618486,1.37571982,111390.0,111380.0,0.003]
[1756299618993,2.08651982,111390.0,111380.0,0.003]
[1756299619186,1.3866722,111390.0,111380.0,0.02987]
[1756299619492,2.57655982,111390.0,111380.0,0.14756]
[1756299619681,2.21575982,111390.0,111380.0,0.14756]
[1756299619885,2.21575982,111390.0,111380.0,0.53553]
[1756299620087,1.96575982,111390.0,111380.0,0.53553]
[1756299620291,0.7768722,111390.0,111380.0,0.53553]
[1756299620787,0.84842622,111390.0,111380.0,0.53553]
[1756299620991,1.19827384,111390.0,111380.0,0.14756]
[1756299621392,1.19827384,111390.0,111380.0,0.14556]
[1756299621590,0.1094969,111380.0,111370.0,0.5961436]
[1756299621793,0.61341452,111380.0,111370.0,1.4351836]
[1756299622992,0.61341452,111380.0,111370.0,1.4623536]
[1756299623192,0.2635669,111380.0,111370.0,1.4623536]
[1756299623693,0.2635669,111380.0,111370.0,1.81220122]
[1756299624088,0.2635669,111380.0,111370.0,1.81320122]
[1756299624689,0.2635669,111380.0,111370.0,1.4633536]
[1756299629694,1.11331452,111380.0,111370.0,1.4633536]
[1756299630399,0.7634669,111380.0,111370.0,1.4633536]
[1756299630604,1.11331452,111380.0,111370.0,1.4633536]
[1756299630893,0.7634669,111380.0,111370.0,1.4633536]
[1756299634702,0.7634669,111380.0,111370.0,0.6243136]
[1756299634896,0.7634669,111380.0,111370.0,1.4632736]
[1756299635298,1.11331452,111380.0,111370.0,1.4632736]
[1756299635701,0.7634669,111380.0,111370.0,1.4632736]
[1756299635895,1.11331452,111380.0,111370.0,1.34632]
[1756299636196,0.7634669,111380.0,111370.0,1.4632746]
[1756299636400,1.48331452,111380.0,111370.0,0.5971446]
[1756299636602,1.48331452,111380.0,111370.0,1.4361046]
[1756299636799,1.48331452,111380.0,111370.0,0.5971446]
[1756299636999,2.57227452,111380.0,111370.0,0.001]
[1756299637204,2.93307452,111380.0,111370.0,0.001]
[1756299637403,2.62307452,111380.0,111370.0,0.001]
[1756299637604,2.94307452,111380.0,111370.0,0.001]
[1756299637798,2.56307452,111380.0,111370.0,0.001]
[1756299638006,2.55227452,111380.0,111370.0,0.001]
[1756299638599,1.36331452,111380.0,111370.0,0.001]
[1756299638799,2.57223452,111380.0,111370.0,0.12341]
[1756299639100,2.57223452,111380.0,111370.0,0.001]
[1756299639302,1.73331452,111380.0,111370.0,0.001]
[1756299639606,2.57223452,111380.0,111370.0,0.02658]
[1756299640009,2.57223452,111380.0,111370.0,0.001]
[1756299644005,2.55223452,111380.0,111370.0,0.001]
[1756299644305,2.20223452,111380.0,111370.0,0.001]
[1756299644501,1.73331452,111380.0,111370.0,0.001]
[1756299644800,1.6023469,111380.0,111370.0,0.50297]
[1756299645007,1.95219452,111380.0,111370.0,0.50297]
[1756299645508,1.6023469,111380.0,111370.0,0.6199247]
[1756299645806,1.6023469,111380.0,111370.0,0.53014]
[1756299645807,1.95219452,111380.0,111370.0,0.53014]
[1756299646008,1.6023469,111380.0,111370.0,0.53014]
[1756299646211,1.6023469,111380.0,111370.0,0.6199247]
[1756299646904,2.29215452,111380.0,111370.0,0.41016]
[1756299647108,2.29215452,111380.0,111370.0,0.001]
[1756299647408,2.29215452,111380.0,111370.0,0.02658]
[1756299647607,2.29215452,111380.0,111370.0,0.001]
[1756299648814,1.95215452,111380.0,111370.0,0.02658]
[1756299649006,2.32215452,111380.0,111370.0,0.001]
[1756299650211,1.95215452,111380.0,111370.0,0.0823]
[1756299650515,0.7634669,111380.0,111370.0,0.50297]
[1756299650708,1.95587452,111380.0,111370.0,0.50297]
[1756299650915,1.11331452,111380.0,111370.0,0.50297]
[1756299651112,1.95595452,111380.0,111370.0,0.50297]
[1756299652811,1.11331452,111380.0,111370.0,0.5927547]
[1756299653019,1.6057069,111380.0,111370.0,0.53014]
[1756299653205,1.6057069,111380.0,111370.0,0.50297]
[1756299654306,1.95555452,111380.0,111370.0,0.50297]
[1756299655214,2.28555452,111380.0,111370.0,0.41016]
[1756299655412,2.28555452,111380.0,111370.0,0.3618]
[1756299655622,2.28555452,111380.0,111370.0,0.001]
[1756299656323,2.31555452,111380.0,111370.0,0.02658]
[1756299657723,1.6057069,111380.0,111370.0,0.02658]
[1756299658027,2.31555452,111380.0,111370.0,0.02658]
[1756299658219,1.6057069,111380.0,111370.0,0.02658]
[1756299658415,2.33555452,111380.0,111370.0,0.02658]
[1756299660324,1.95555452,111380.0,111370.0,0.001]
[1756299660524,2.31555452,111380.0,111370.0,0.001]
[1756299663025,0.2592828,111360.0,111350.0,0.61131521]
[1756299663230,0.60913042,111360.0,111350.0,0.61131521]
[1756299663429,0.2592828,111360.0,111350.0,0.70117521]
[1756299663632,0.60913042,111360.0,111350.0,0.70117521]
[1756299664236,2.51233804,111360.0,111350.0,0.20082521]
[1756299664432,2.76233804,111360.0,111350.0,0.03957]
[1756299664629,1.91977804,111360.0,111350.0,0.04157]
[1756299664827,2.76269804,111360.0,111350.0,0.04157]
[1756299665029,2.76269804,111360.0,111350.0,0.04457]
[1756299665433,2.76289804,111360.0,111350.0,0.04457]
[1756299666027,2.76277804,111360.0,111350.0,0.04457]
[1756299666229,1.56977804,111360.0,111350.0,0.04457]
[1756299666535,2.79269804,111360.0,111350.0,0.04457]
[1756299667035,3.29259804,111360.0,111350.0,0.04457]
[1756299667634,2.44967804,111360.0,111350.0,0.04457]
[1756299667831,1.71983042,111360.0,111350.0,0.04457]
[1756299668031,1.46983042,111360.0,111350.0,0.04457]
[1756299668238,1.96151042,111360.0,111350.0,0.54492]
[1756299668435,0.92319171,111360.0,111350.0,0.54492]
[1756299668648,0.66313689,111360.0,111350.0,1.26201842]
[1756299669635,0.5996928,111360.0,111350.0,1.26201842]
[1756299670038,0.4999,111360.0,111350.0,1.26201842]
[1756299670538,0.5896928,111360.0,111350.0,1.26201842]
[1756299670744,0.6661728,111360.0,111350.0,0.9121708]
[1756299671039,0.6661728,111360.0,111350.0,1.26201842]
[1756299671439,0.5896928,111360.0,111350.0,0.9121708]
[1756299671636,0.5896928,111360.0,111350.0,1.26201842]
[1756299671837,0.4999,111360.0,111350.0,1.26201842]
[1756299673137,0.5896928,111360.0,111350.0,1.26201842]
[1756299673337,0.5896928,111360.0,111350.0,1.42327363]
[1756299673538,0.5896928,111360.0,111350.0,1.44292618]
[1756299673739,0.6183728,111360.0,111350.0,1.44292618]
[1756299674039,0.6917528,111360.0,111350.0,1.09307856]
[1756299674235,0.1918528,111360.0,111350.0,1.44292618]
[1756299674441,0.6917528,111360.0,111350.0,1.44292618]
[1756299674942,0.5896928,111360.0,111350.0,1.44292618]
[1756299676441,0.4999,111360.0,111350.0,1.44292618]
[1756299678639,0.2592797,111370.0,111360.0,0.1088028]
[1756299678832,0.06479159,111370.0,111360.0,1.80872042]
[1756299679534,0.56469159,111370.0,111360.0,1.80872042]
[1756299680042,0.65448239,111370.0,111360.0,1.80872042]
[1756299680744,0.72786239,111370.0,111360.0,1.80872042]
[1756299680947,0.72786239,111370.0,111360.0,1.80972042]
[1756299681254,0.75654239,111370.0,111360.0,1.4589128]
[1756299681546,1.20003532,111370.0,111360.0,1.4614328]
[1756299681742,0.75654239,111370.0,111360.0,0.41769]
[1756299681947,1.58003532,111370.0,111360.0,0.41769]
[1756299684543,1.83003532,111370.0,111360.0,0.3638]
[1756299684944,1.45003532,111370.0,111360.0,0.3638]
[1756299685248,1.82003532,111370.0,111360.0,0.41769]
[1756299688146,1.82003532,111370.0,111360.0,0.3638]
[1756299688349,1.94003532,111370.0,111360.0,0.3638]
[1756299689350,1.94003532,111370.0,111360.0,0.39295]
[1756299689545,1.94003532,111370.0,111360.0,0.3638]
[1756299689849,1.94003532,111370.0,111360.0,0.003]
[1756299692847,1.12654239,111370.0,111360.0,0.07977]
[1756299693047,1.94003532,111370.0,111360.0,0.07977]
[1756299693252,1.94003532,111370.0,111360.0,0.05849]
[1756299693551,1.57003532,111370.0,111360.0,0.07977]
[1756299693846,1.93003532,111370.0,111360.0,0.11165]
[1756299694053,1.93003532,111370.0,111360.0,0.07977]
[1756299694242,1.93003532,111370.0,111360.0,0.09901]
[1756299694449,2.41143532,111370.0,111360.0,0.52935]
[1756299694747,2.72143532,111370.0,111360.0,0.45981]
[1756299695148,1.57003532,111370.0,111360.0,0.49169]
[1756299695350,2.74147532,111370.0,111360.0,0.52935]
[1756299696252,1.57003532,111370.0,111360.0,0.49747]
[1756299696453,2.41135532,111370.0,111360.0,0.52935]
[1756299697050,1.12654239,111370.0,111360.0,0.52935]
[1756299697250,2.41131532,111370.0,111360.0,0.52935]
[1756299698946,1.71774239,111370.0,111360.0,1.06263583]
[1756299699152,0.81476639,111370.0,111360.0,1.31263583]
[1756299699350,0.77447639,111370.0,111360.0,1.31263583]
[1756299699659,0.71753159,111370.0,111360.0,1.31263583]
[1756299699958,0.75766159,111370.0,111360.0,1.31263583]
[1756299700651,0.75766159,111370.0,111360.0,1.7103829]
[1756299700955,0.75766159,111370.0,111360.0,2.15387583]
[1756299701754,0.68469159,111370.0,111360.0,2.15387583]
[1756299701956,0.64522,111370.0,111360.0,2.15387583]
[1756299702157,0.6199,111370.0,111360.0,2.15387583]
[1756299702751,0.6199,111370.0,111360.0,2.15355583]
[1756299703055,0.6199,111370.0,111360.0,1.31263583]
[1756299703254,0.6199,111370.0,111360.0,2.15383583]
[1756299705261,0.6199,111370.0,111360.0,1.7103429]
[1756299705462,0.6199,111370.0,111360.0,2.15383583]
[1756299706155,0.8787249,111370.0,111360.0,1.7099029]
[1756299706355,0.8787249,111370.0,111360.0,0.6191429]
[1756299706562,1.32221783,111370.0,111360.0,1.4600629]
[1756299707161,0.8787249,111370.0,111360.0,1.4600629]
[1756299707363,0.78894,111370.0,111360.0,1.4600629]
[1756299707863,0.78894,111370.0,111360.0,1.90355583]
[1756299709463,0.78894,111370.0,111360.0,1.90371583]
[1756299709655,0.75999,111370.0,111360.0,1.4602229]
[1756299710061,0.6199,111370.0,111360.0,1.90371583]
[1756299710761,0.6199,111370.0,111360.0,1.4602229]
[1756299710965,0.6199,111370.0,111360.0,1.90371583]
[1756299711364,0.69287,111370.0,111360.0,1.90459583]
[1756299711961,0.69287,111370.0,111360.0,2.06585104]
[1756299712964,0.7826543,111370.0,111360.0,2.06585104]
[1756299714370,0.7826543,111370.0,111360.0,1.90459583]
[1756299714572,0.69287,111370.0,111360.0,1.90459583]
[1756299714869,0.65274,111370.0,111360.0,1.90459583]
[1756299715074,0.6199,111370.0,111360.0,1.90459583]
[1756299715373,0.6199,111370.0,111360.0,2.06591704]
[1756299716770,0.6199,111370.0,111360.0,2.07699031]
[1756299717070,0.6199,111370.0,111360.0,2.06591704]
[1756299717465,0.8497743,111370.0,111360.0,1.62102411]
[1756299717771,0.8497743,111370.0,111360.0,2.06451704]
[1756299717970,0.8497743,111370.0,111360.0,1.62102411]
[1756299718168,0.8497743,111370.0,111360.0,2.06451704]
[1756299718874,0.8169343,111370.0,111360.0,2.06451704]
[1756299719074,0.8778843,111370.0,111360.0,2.06451704]
[1756299719371,0.8499143,111370.0,111360.0,2.06451704]
[1756299720270,0.72,111370.0,111360.0,2.06451704]
[1756299720475,0.6199,111370.0,111360.0,2.07591274]
[1756299720771,0.5849,111370.0,111360.0,2.76940567]
[1756299720975,0.47196,111370.0,111360.0,2.60808446]
[1756299721370,0.40077,111370.0,111360.0,2.60808446]
[1756299721578,0.36238,111370.0,111360.0,2.60808446]
[1756299721763,0.12,111370.0,111360.0,2.60808446]
[1756299721963,0.12,111370.0,111360.0,2.16459153]
[1756299722173,0.12,111370.0,111360.0,2.60808446]
[1756299722676,0.12,111370.0,111360.0,2.16559153]
[1756299723475,0.12,111370.0,111360.0,2.16359153]
[1756299723766,0.12,111370.0,111360.0,2.16559153]
[1756299724577,0.12,111370.0,111360.0,2.16491153]
[1756299725977,0.16834,111370.0,111360.0,0.8815386]
[1756299726177,0.28896,111370.0,111360.0,2.16447153]
[1756299727078,0.28896,111370.0,111360.0,2.37387003]
[1756299727276,0.28896,111370.0,111360.0,2.37287003]
[1756299727577,0.73245293,111370.0,111360.0,1.6679414]
[1756299727876,0.28896,111370.0,111360.0,1.6669414]
[1756299728272,0.28896,111370.0,111360.0,1.61883897]
[1756299729078,0.3787443,111370.0,111360.0,1.61883897]
[1756299729578,0.3787443,111370.0,111360.0,2.0623319]
[1756299730179,0.8403443,111370.0,111360.0,2.0623319]
[1756299730376,0.8403443,111370.0,111360.0,1.2229319]
[1756299730576,0.8403443,111370.0,111360.0,1.972539]
[1756299730879,0.67103,111370.0,111360.0,1.972539]
[1756299731078,0.5816,111370.0,111360.0,2.0623314]
[1756299731579,0.6713843,111370.0,111360.0,1.90103533]